bitfinex/quotes_SOLUSD_20250724
["timestamp","ask_amount","ask_price","bid_price","bid_amount"]
[1753342533194,5.47345157,182.71,182.67,8.55256412]
[1753342533621,39.35545827,182.72,182.67,8.55256412]
[1753342533991,40.06545827,182.72,182.67,8.55256412]
[1753342535524,6.1833947,182.71,182.66,7.88256412]
[1753342535698,14.06595882,182.71,182.66,8.55256412]
[1753342538623,8.59256412,182.7,182.63,0.67]
[1753342538831,8.59256412,182.7,182.65,7.88256412]
[1753342539135,0.71,182.69,182.65,7.88256412]
[1753342539423,7.88256412,182.67,182.61,0.67]
[1753342539593,35.47626412,182.65,182.6,7.88256412]
[1753342539794,7.88256412,182.62,182.56,0.67]
[1753342540099,7.88256412,182.62,182.57,7.88256412]
[1753342540415,6.0704,182.64,182.6,7.88256412]
[1753342540615,31.47487636,182.66,182.62,7.88256412]
[1753342540913,32.98312891,182.69,182.63,0.67]
[1753342541122,6.98312891,182.69,182.63,0.67]
[1753342541293,15.57569303,182.69,182.6,39.86]
[1753342541618,7.88256412,182.68,182.62,7.88256412]
[1753342541816,7.88256412,182.67,182.62,7.88256412]
[1753342542116,7.88256412,182.65,182.6,48.41256412]
[1753342542314,5.47525186,182.64,182.6,39.86]
[1753342542515,6.18525186,182.64,182.6,39.86]
[1753342543014,6.18525186,182.64,182.59,7.88256412]
[1753342543399,5.47525186,182.64,182.6,7.88256412]
[1753342543614,5.47426635,182.68,182.63,7.88256412]
[1753342543810,5.47426635,182.68,182.65,7.88256412]
[1753342544113,5.47426635,182.68,182.64,8.60256412]
[1753342544706,6.17426635,182.68,182.64,7.88256412]
[1753342544905,8.58256412,182.67,182.61,0.72]
[1753342545118,8.58256412,182.67,182.61,6.41327751]
[1753342545619,8.58256412,182.67,182.62,7.88256412]
[1753342545921,0.7,182.66,182.57,16.78468397]
[1753342546122,0.7,182.66,182.62,7.88256412]
[1753342546422,45.15939882,182.68,182.63,7.88256412]
[1753342546624,53.74196294,182.68,182.63,7.88256412]
[1753342546797,53.04196294,182.68,182.57,22.26199215]
[1753342547001,0.7,182.67,182.63,7.88256412]
[1753342547513,5.47465235,182.66,182.63,7.88256412]
[1753342547818,5.47465235,182.66,182.62,7.88256412]
[1753342548713,5.47435265,182.67,182.62,7.88256412]
[1753342548920,6.17435265,182.67,182.62,7.88256412]
[1753342550010,5.47435265,182.67,182.64,7.88256412]
[1753342550206,5.47435265,182.67,182.63,7.88256412]
[1753342551218,5.47435265,182.67,182.6,16.78468397]
[1753342551403,5.47435265,182.67,182.63,8.60256412]
[1753342552199,23.77685598,182.69,182.63,8.60256412]
[1753342552200,5.47405298,182.68,182.63,8.60256412]
[1753342552524,0.7,182.67,182.61,0.72]
[1753342553006,0.7,182.67,182.63,7.88256412]
[1753342553608,0.7,182.67,182.61,0.72]
[1753342553818,7.88256412,182.63,182.57,7.88256412]
[1753342553998,8.58256412,182.63,182.56,0.72]
[1753342554206,13.35841561,182.62,182.56,0.72]
[1753342554609,13.35841561,182.62,182.57,7.88256412]
[1753342554827,6.17585149,182.62,182.56,0.72]
[1753342555030,7.88256412,182.6,182.55,39.94]
[1753342555208,8.58256412,182.6,182.55,47.82256412]
[1753342556117,8.58256412,182.6,182.55,48.54256412]
[1753342556118,5.47675119,182.59,182.55,48.54256412]
[1753342556704,5.47675119,182.59,182.57,0.06]
[1753342557222,4.29138104,182.59,182.57,0.06]
[1753342558033,5.47645125,182.6,182.57,0.06]
[1753342558202,5.47645125,182.6,182.57,8.66256412]
[1753342558635,5.47645125,182.6,182.57,7.94256412]
[1753342558840,5.47645125,182.6,182.57,0.06]
[1753342559220,0.7,182.59,182.57,0.06]
[1753342559920,5.47645125,182.6,182.57,0.06]
[1753342560526,0.7,182.59,182.57,0.06]
[1753342560735,8.58256412,182.64,182.58,8.60256412]
[1753342560910,26.0,182.63,182.61,7.88256412]
[1753342561110,0.7,182.64,182.58,0.72]
[1753342561413,8.58256412,182.64,182.57,0.06]
[1753342561608,8.58256412,182.64,182.59,7.88256412]
[1753342561813,7.88256412,182.61,182.57,0.06]
[1753342562021,26.7,182.63,182.57,0.06]
[1753342562022,7.88256412,182.6,182.57,0.06]
[1753342562226,5.47675119,182.59,182.57,0.06]
[1753342562550,6.17675119,182.59,182.57,0.06]
[1753342563261,0.7,182.58,182.57,0.06]
[1753342563725,5.47675119,182.59,182.57,0.06]
[1753342564121,16.01026412,182.62,182.57,0.06]
[1753342564428,5.47622569,182.61,182.58,7.88256412]
[1753342564652,1.6044,182.62,182.58,7.88256412]
[1753342564862,7.6624,182.66,182.61,7.88256412]
[1753342565167,7.6624,182.66,182.59,0.72]
[1753342565168,0.03,182.67,182.62,0.72]
[1753342565325,31.50443842,182.67,182.64,7.88256412]
[1753342565521,0.03,182.67,182.6,7.88256412]
[1753342565726,0.03,182.67,182.66,7.88256412]
[1753342566149,0.03,182.71,182.67,16.78468397]
[1753342566354,0.03,182.71,182.7,24.66724809]
[1753342566546,0.03,182.71,182.7,72.40981221]
[1753342566856,5.47039837,182.81,182.7,73.12981221]
[1753342567149,5.47039837,182.81,182.78,7.88256412]
[1753342568925,6.17039837,182.81,182.78,7.88256412]
[1753342569431,7.88256412,182.79,182.73,7.88256412]
[1753342569938,7.88256412,182.79,182.74,7.88256412]
[1753342570146,5.4710581,182.78,182.74,7.88256412]
[1753342571253,6.1710581,182.78,182.74,7.88256412]
[1753342571848,6.1710581,182.78,182.72,39.84]
[1753342572057,6.1710581,182.78,182.74,7.88256412]
[1753342573660,8.54256412,182.77,182.68,17.48468397]
[1753342573856,8.54256412,182.76,182.71,7.88256412]
[1753342574169,0.66,182.75,182.71,7.88256412]
[1753342574334,0.66,182.75,182.72,7.88256412]
[1753342575235,5.47225566,182.74,182.72,7.88256412]
[1753342577059,6.13200172,182.75,182.72,7.88256412]
[1753342578163,0.66,182.75,182.68,40.52]
[1753342578352,0.66,182.75,182.71,7.88256412]
[1753342578556,7.88256412,182.76,182.71,7.88256412]
[1753342578557,0.66,182.74,182.71,7.88256412]
[1753342578948,0.66,182.74,182.68,40.52]
[1753342579144,6.13247334,182.74,182.71,7.88256412]
[1753342579652,0.66,182.73,182.68,39.82]
[1753342579837,0.66,182.72,182.69,7.88256412]
[1753342580479,0.66,182.72,182.68,47.70256412]
[1753342580967,0.66,182.72,182.69,7.88256412]
[1753342581165,6.13247334,182.74,182.7,7.88256412]
[1753342581341,0.66,182.72,182.68,39.82]
[1753342581542,26.0,182.7,182.63,0.7]
[1753342581765,26.0,182.7,182.64,7.88256412]
[1753342581766,8.54256412,182.69,182.64,7.88256412]
[1753342581967,0.66,182.68,182.63,47.68256412]
[1753342582149,7.88256412,182.69,182.64,7.88256412]
[1753342582342,0.66,182.69,182.65,7.88256412]
[1753342582842,0.66,182.69,182.63,40.5]
[1753342583145,0.66,182.69,182.65,7.88256412]
[1753342583786,5.47405298,182.68,182.63,40.5]
[1753342583949,5.47405298,182.68,182.65,7.88256412]
[1753342584465,6.13405298,182.68,182.64,7.88256412]
[1753342585078,5.47345374,182.7,182.66,7.88256412]
[1753342585271,5.47345374,182.7,182.66,8.58256412]
[1753342585446,5.47345374,182.7,182.67,7.88256412]
[1753342585846,31.47319954,182.71,182.67,7.88256412]
[1753342586163,5.47285027,182.73,182.7,7.88256412]
[1753342586484,0.66,182.72,182.68,7.88256412]
[1753342587267,7.88256412,182.7,182.63,39.8]
[1753342587580,7.88256412,182.66,182.6,7.88256412]
[1753342587748,0.66,182.66,182.6,7.88256412]
[1753342587948,7.88256412,182.64,182.57,0.76]
[1753342588157,7.88256412,182.62,182.57,7.94256412]
[1753342588353,0.66,182.61,182.57,7.94256412]
[1753342588671,8.54256412,182.63,182.57,7.94256412]
[1753342588971,32.4089,182.65,182.61,7.88256412]
[1753342589176,5.47525186,182.64,182.6,7.88256412]
[1753342589378,6.13525186,182.64,182.6,7.88256412]
[1753342590586,6.4089,182.65,182.61,7.88256412]
[1753342590868,7.07552953,182.67,182.63,7.88256412]
[1753342591065,0.66,182.66,182.61,7.88256412]
[1753342591273,0.66,182.65,182.61,7.88256412]
[1753342591479,0.66,182.64,182.6,39.8]
[1753342591784,0.66,182.63,182.6,39.8]
[1753342592158,0.66,182.63,182.59,7.88256412]
[1753342592553,5.47546933,182.64,182.6,7.88256412]
[1753342592971,6.13546933,182.64,182.6,7.88256412]
[1753342594380,0.66,182.63,182.6,7.88256412]
[1753342595059,5.47556152,182.63,182.6,7.88256412]
[1753342596072,5.47525186,182.64,182.6,7.88256412]
[1753342596276,0.66,182.63,182.6,7.88256412]
[1753342597182,13.35781598,182.64,182.57,0.76]
[1753342597479,8.54256412,182.62,182.57,7.94256412]
[1753342597775,0.66,182.61,182.57,0.06]
[1753342597983,26.0,182.61,182.58,7.88256412]
[1753342598191,31.47633785,182.61,182.58,7.88256412]
[1753342599879,32.13633785,182.61,182.58,7.88256412]
[1753342601370,31.47633785,182.61,182.58,7.88256412]
[1753342602470,5.47587929,182.62,182.58,7.88256412]
[1753342602798,5.47587929,182.62,182.59,7.88256412]
[1753342603595,6.13587929,182.62,182.59,7.88256412]
[1753342603794,0.66,182.61,182.58,7.88256412]
[1753342603974,5.47587929,182.62,182.58,7.88256412]
[1753342604172,0.66,182.61,182.58,7.88256412]
[1753342604376,5.47645125,182.6,182.58,7.88256412]
[1753342604689,5.47555166,182.63,182.59,7.88256412]
[1753342605092,5.47495209,182.65,182.61,7.88256412]
[1753342605275,5.47495209,182.65,182.62,7.88256412]
[1753342605589,0.66,182.64,182.61,7.88256412]
[1753342605799,0.66,182.63,182.6,7.88256412]
[1753342605976,34.54256412,182.63,182.57,7.94256412]
[1753342606289,5.47615136,182.61,182.57,7.94256412]
[1753342606791,0.66,182.6,182.57,0.06]
[1753342606966,0.66,182.59,182.57,0.06]
[1753342607171,5.47615136,182.61,182.57,7.94256412]
[1753342607374,5.47615136,182.61,182.57,8.61256412]
[1753342607681,5.47615136,182.61,182.58,7.88256412]
[1753342608691,0.66,182.65,182.6,7.88256412]
[1753342608895,5.47475484,182.66,182.64,7.88256412]
[1753342609192,5.47475484,182.66,182.64,4.85926863]
[1753342609392,6.13475484,182.66,182.63,4.85926863]
[1753342610770,5.47475484,182.66,182.63,4.85926863]
[1753342610971,0.66,182.65,182.61,4.85926863]
[1753342611176,0.66,182.64,182.61,4.85926863]
[1753342611384,5.47475484,182.66,182.61,4.85926863]
[1753342611676,6.13475484,182.66,182.62,4.85926863]
[1753342611977,5.47475484,182.66,182.59,0.67]
[1753342612177,0.66,182.65,182.62,4.85926863]
[1753342612376,6.13516996,182.65,182.62,4.85926863]
[1753342612779,5.4746624,182.66,182.63,4.85926863]
[1753342613701,6.1346624,182.66,182.63,4.85926863]
[1753342614596,5.4746624,182.66,182.63,4.85926863]
[1753342614810,7.07535081,182.67,182.64,4.85926863]
[1753342615774,7.73535081,182.67,182.64,4.85926863]
[1753342616885,7.07535081,182.67,182.64,4.85926863]
[1753342617184,7.73535081,182.67,182.63,4.85926863]
[1753342617880,7.73535081,182.67,182.64,4.85926863]
[1753342619699,0.66,182.66,182.64,4.85926863]
[1753342619890,7.07535081,182.67,182.64,4.85926863]
[1753342620094,0.66,182.65,182.62,4.85926863]
[1753342620300,11.93461944,182.67,182.62,4.85926863]
[1753342620501,0.66,182.66,182.62,4.85926863]
[1753342620790,1.6009,182.67,182.65,4.85926863]
[1753342620999,6.642,182.71,182.66,4.85926863]
[1753342621000,7.302,182.71,182.66,4.85926863]
[1753342621178,5.47324994,182.71,182.68,4.85926863]
[1753342621378,6.13324994,182.71,182.68,4.85926863]
[1753342621782,1.5947,182.72,182.7,4.85926863]
[1753342621986,1.5947,182.72,182.68,0.67]
[1753342621987,0.03,182.72,182.71,4.85926863]
[1753342622391,0.03,182.72,182.71,5.52926863]
[1753342622602,0.03,182.72,182.71,4.85926863]
[1753342623908,0.03,182.72,182.7,4.85926863]
[1753342624405,0.03,182.72,182.71,4.85926863]
[1753342625605,0.03,182.72,182.7,4.85926863]
[1753342626298,0.03,182.72,182.67,5.47432538]
[1753342626503,0.03,182.72,182.71,4.85926863]
[1753342627815,0.03,182.72,182.69,0.67]
[1753342628006,0.03,182.72,182.68,4.85926863]
[1753342628195,0.03,182.72,182.65,88.87]
[1753342628196,0.03,182.72,182.69,4.85926863]
[1753342628903,0.03,182.72,182.7,4.85926863]
[1753342629213,5.50285464,182.72,182.7,4.85926863]
[1753342629504,6.16285464,182.72,182.69,4.85926863]
[1753342629681,0.66,182.71,182.69,4.85926863]
[1753342630404,5.50285464,182.72,182.7,4.85926863]
[1753342630704,0.03,182.72,182.71,4.85926863]
[1753342632904,0.03,182.72,182.7,4.85926863]
[1753342633985,0.03,182.72,182.68,0.67]
[1753342634192,0.03,182.72,182.7,4.85926863]
[1753342635399,0.71,182.71,182.69,4.85926863]
[1753342635605,0.71,182.71,182.63,104.98468397]
[1753342635606,26.0,182.7,182.63,88.88]
[1753342635794,26.71,182.7,182.66,4.85926863]
[1753342635995,26.0,182.7,182.68,4.85926863]
[1753342636311,0.03,182.72,182.69,4.85926863]
[1753342636517,0.03,182.72,182.71,4.85926863]
[1753342637110,0.03,182.72,182.68,39.7]
[1753342637314,0.03,182.72,182.71,4.85926863]
[1753342637912,0.03,182.72,182.71,5.53926863]
[1753342638111,0.03,182.72,182.71,11.0124228]
[1753342639092,0.03,182.72,182.69,0.68]
[1753342639314,0.03,182.72,182.71,0.68]
[1753342639514,0.03,182.72,182.71,5.53926863]
[1753342641506,0.03,182.72,182.71,11.0124228]
[1753342641815,0.03,182.72,182.71,5.53926863]
[1753342642019,0.03,182.72,182.71,11.0124228]
[1753342642602,0.03,182.72,182.71,27.79710677]
[1753342643196,0.03,182.72,182.71,22.3239526]
[1753342643391,0.03,182.72,182.69,94.22083955]
[1753342643597,0.03,182.72,182.71,4.85926863]
[1753342644013,0.03,182.72,182.71,5.53926863]
[1753342645116,0.03,182.72,182.71,45.19926863]
[1753342645421,0.03,182.72,182.71,44.51926863]
[1753342645619,0.03,182.72,182.71,45.19926863]
[1753342646119,0.03,182.72,182.71,68.00442218]
[1753342647516,0.03,182.75,182.72,16.78468397]
[1753342647720,0.03,182.75,182.74,21.6439526]
[1753342647904,0.03,182.79,182.78,42.78468397]
[1753342648104,1.8043,182.86,182.78,180.36322123]
[1753342648410,1.8043,182.86,182.85,4.85926863]
[1753342648611,7.27296455,182.86,182.85,4.85926863]
[1753342648921,1.8043,182.86,182.85,4.85926863]
[1753342649126,0.2,182.86,182.85,4.85926863]
[1753342649421,0.2,182.86,182.84,39.66]
[1753342649617,0.2,182.86,182.85,4.85926863]
[1753342649826,0.2,182.86,182.85,5.53926863]
[1753342652322,0.2,182.86,182.85,27.79291623]
[1753342652620,0.2,182.86,182.85,22.3239526]
[1753342653224,0.2,182.86,182.85,27.79291623]
[1753342655400,0.2,182.86,182.85,28.33981259]
[1753342655621,0.91,182.86,182.84,4.85926863]
[1753342655919,0.2,182.86,182.85,44.47926863]
[1753342658217,5.66866455,182.86,182.85,39.62]
[1753342658415,5.66866455,182.86,182.85,39.6]
[1753342658416,6.37866455,182.86,182.85,39.6]
[1753342659407,12.83723318,182.86,182.77,0.68]
[1753342659612,4.85926863,182.83,182.77,4.85926863]
[1753342659810,0.71,182.83,182.79,4.85926863]
[1753342660132,0.71,182.83,182.8,39.6]
[1753342660329,4.85926863,182.84,182.8,39.6]
[1753342660629,0.71,182.82,182.8,39.6]
[1753342660809,5.47016027,182.81,182.8,39.6]
[1753342661010,6.18016027,182.81,182.8,39.6]
[1753342661932,50.71482958,182.81,182.74,4.85926863]
[1753342662103,4.85926863,182.78,182.75,39.6]
[1753342662307,6.37236863,182.78,182.74,39.6]
[1753342662517,0.71,182.77,182.74,39.6]
[1753342662822,0.71,182.76,182.74,39.6]
[1753342663010,5.47195622,182.75,182.74,39.6]
[1753342663206,0.71,182.76,182.74,39.6]
[1753342663207,6.18170795,182.76,182.74,39.6]
[1753342663432,5.47170795,182.76,182.74,44.45926863]
[1753342663606,5.47170795,182.76,182.75,4.85926863]
[1753342663808,6.9842067,182.78,182.75,4.85926863]
[1753342664008,6.9842067,182.78,182.76,4.85926863]
[1753342664322,5.4711067,182.78,182.77,44.45926863]
[1753342665417,5.47045951,182.8,182.77,44.45926863]
[1753342665733,5.47024869,182.81,182.79,4.85926863]
[1753342665918,5.47024869,182.81,182.79,44.45926863]
[1753342667123,5.47024869,182.81,182.8,4.85926863]
[1753342668633,5.47024869,182.81,182.79,44.45926863]
[1753342670435,6.16024869,182.81,182.79,44.45926863]
[1753342671035,5.47024869,182.81,182.79,44.45926863]
[1753342671638,5.47024869,182.81,182.8,4.85926863]
[1753342673139,5.46986106,182.82,182.8,4.85926863]
[1753342673438,0.69,182.81,182.79,4.85926863]
[1753342673640,5.46986106,182.82,182.8,39.58]
[1753342673944,0.69,182.81,182.8,39.58]
[1753342675734,6.16016027,182.81,182.8,39.58]
[1753342677649,5.47016027,182.81,182.8,39.58]
[1753342677840,5.46986106,182.82,182.8,39.58]
[1753342678366,6.15986106,182.82,182.8,39.58]
[1753342680054,5.46986106,182.82,182.8,39.58]
[1753342680230,0.69,182.81,182.8,39.58]
[1753342680560,5.46986106,182.82,182.8,44.43926863]
[1753342681627,5.46896363,182.85,182.81,5.57926863]
[1753342681843,5.46896363,182.85,182.84,4.85926863]
[1753342682027,5.46896363,182.85,182.84,44.41926863]
[1753342682951,24.69064133,182.85,182.78,88.2]
[1753342683264,30.85926863,182.82,182.79,39.56]
[1753342683429,30.85926863,182.82,182.78,39.56]
[1753342683634,5.47045951,182.8,182.78,39.56]
[1753342683950,0.69,182.79,182.75,4.91926863]
[1753342684150,0.69,182.78,182.77,39.56]
[1753342684354,19.1466083,182.8,182.77,39.56]
[1753342684355,0.69,182.79,182.77,39.56]
[1753342685751,5.4710581,182.78,182.77,39.56]
[1753342686157,5.47016027,182.81,182.77,44.41926863]
[1753342686364,5.47016027,182.81,182.78,4.85926863]
[1753342687859,19.42135366,182.86,182.8,4.85926863]
[1753342688055,19.1413727,182.85,182.81,44.39926863]
[1753342688263,19.1413727,182.85,182.81,39.54]
[1753342688433,0.69,182.84,182.81,39.54]
[1753342689064,0.69,182.83,182.81,39.54]
[1753342690140,5.46986106,182.82,182.81,39.54]
[1753342690849,5.46926274,182.84,182.81,44.39926863]
[1753342691061,5.46926274,182.84,182.82,4.85926863]
[1753342691960,5.46926274,182.84,182.83,39.54]
[1753342692166,5.49896363,182.85,182.83,39.54]
[1753342692347,19.1713727,182.85,182.77,0.06]
[1753342692554,0.69,182.84,182.8,4.85926863]
[1753342692869,0.69,182.84,182.81,44.37926863]
[1753342693663,5.49896363,182.85,182.81,44.37926863]
[1753342693869,5.49896363,182.85,182.82,4.85926863]
[1753342695545,0.03,182.85,182.84,4.85926863]
[1753342695769,0.03,182.85,182.84,44.37926863]
[1753342698046,0.03,182.85,182.84,45.03926863]
[1753342698246,0.03,182.85,182.84,67.29321534]
[1753342698547,0.03,182.85,182.84,67.84014161]
[1753342698973,0.03,182.85,182.84,22.85087887]
[1753342699170,0.03,182.85,182.84,67.27321534]
[1753342700373,0.03,182.85,182.84,181.47321534]
[1753342700667,0.2,182.86,182.85,42.78468397]
[1753342700978,0.03,182.89,182.88,42.78468397]
[1753342701147,0.03,182.89,182.88,92.55002787]
[1753342701346,0.03,182.89,182.88,93.21002787]
[1753342701651,0.03,182.89,182.88,98.67809436]
[1753342702768,0.03,182.89,182.88,186.87809436]
[1753342702948,0.03,182.89,182.88,186.33128772]
[1753342703569,0.03,182.9,182.89,16.78468397]
[1753342703751,0.2,182.91,182.89,115.97172011]
[1753342703945,0.2,182.91,182.9,62.33069945]
[1753342705963,0.2,182.91,182.9,28.31816801]
[1753342706282,0.2,182.91,182.9,61.1239526]
[1753342706457,0.2,182.91,182.9,66.59142116]
[1753342707061,0.2,182.91,182.9,67.79816801]
[1753342707872,0.2,182.91,182.9,67.13816801]
[1753342708072,0.2,182.91,182.9,44.33926863]
[1753342708580,0.2,182.91,182.9,67.25142116]
[1753342709459,0.2,182.91,182.9,67.79816801]
[1753342710349,0.2,182.91,182.9,28.31816801]
[1753342710554,0.2,182.91,182.9,61.1039526]
[1753342711084,0.2,182.91,182.9,66.57142116]
[1753342711256,0.2,182.91,182.9,67.23142116]
[1753342711456,0.2,182.91,182.9,62.37215253]
[1753342711756,0.2,182.91,182.9,61.1039526]
[1753342712849,0.2,182.91,182.9,66.57142116]
[1753342713254,0.2,182.91,182.9,27.77142116]
[1753342713477,0.2,182.91,182.9,61.0839526]
[1753342713861,0.2,182.91,182.9,66.55142116]
[1753342714066,0.2,182.91,182.9,67.21142116]
[1753342716875,0.2,182.91,182.9,66.55142116]
[1753342717076,0.2,182.91,182.9,67.21142116]
[1753342717476,0.2,182.91,182.9,61.7439526]
[1753342717784,0.2,182.91,182.9,66.55142116]
[1753342718161,0.2,182.91,182.9,67.21142116]
[1753342720385,0.2,182.91,182.9,155.41142116]
[1753342721481,0.2,182.94,182.93,27.11052451]
[1753342721674,0.2,182.94,182.93,66.53052451]
[1753342721875,0.2,182.94,182.93,155.39052451]
[1753342723266,5.05926863,183.05,183.0,16.78468397]
[1753342723267,0.2,183.05,183.0,16.78468397]
[1753342723575,0.2,183.05,183.03,4.85926863]
[1753342723779,0.2,183.05,183.03,44.27926863]
[1753342724681,0.2,183.05,183.03,61.0639526]
[1753342724880,0.2,183.05,183.03,92.64322123]
[1753342725089,0.2,183.05,183.04,5.4055973]
[1753342725386,0.2,183.05,183.04,11.58888401]
[1753342725584,0.2,183.05,183.04,33.23283661]
[1753342725887,0.03,183.07,183.06,42.78468397]
[1753342726086,0.03,183.08,183.07,16.78468397]
[1753342726287,0.03,183.09,183.07,22.91019174]
[1753342726466,0.03,183.09,183.08,61.0439526]
[1753342726671,0.03,183.09,183.08,61.7639526]
[1753342727389,0.03,183.09,183.08,67.22604567]
[1753342728081,0.03,183.1,183.09,42.78468397]
[1753342728282,0.03,183.1,183.09,48.91013207]
[1753342728882,0.03,183.11,183.09,48.91013207]
[1753342729189,0.03,183.11,183.1,61.7439526]
[1753342729384,0.03,183.11,183.1,67.20544905]
[1753342730290,0.03,183.11,183.1,155.40544905]
[1753342730493,0.03,183.15,183.13,26.0]
[1753342730674,0.03,183.15,183.13,70.23926863]
[1753342731792,0.75,183.14,183.06,4.85926863]
[1753342731981,0.75,183.14,183.1,4.85926863]
[1753342732170,0.75,183.14,183.01,6.18418228]
[1753342732171,4.85926863,183.12,183.01,6.18418228]
[1753342732377,0.72,183.11,183.02,4.85926863]
[1753342732576,4.85926863,183.1,183.05,4.85926863]
[1753342732869,7.0071,183.12,183.09,4.85926863]
[1753342733090,0.72,183.11,183.1,39.36]
[1753342733685,0.72,183.11,183.1,44.21926863]
[1753342733995,0.72,183.11,183.1,39.36]
[1753342734494,0.72,183.11,183.1,44.21926863]
[1753342734671,0.72,183.11,183.1,39.36]
[1753342735497,0.03,183.14,183.1,44.93926863]
[1753342735796,0.03,183.14,183.11,18.05080378]
[1753342735996,0.03,183.14,183.12,39.36]
[1753342736194,0.03,183.14,183.09,5.4617445]
[1753342736393,0.03,183.14,183.1,39.36]
[1753342736590,0.72,183.13,183.11,4.85926863]
[1753342736784,0.03,183.14,183.12,44.21926863]
[1753342736986,0.03,183.14,183.13,4.85926863]
[1753342737382,0.03,183.14,183.13,21.6439526]
[1753342737800,0.03,183.14,183.13,27.10455435]
[1753342737979,0.03,183.14,183.13,27.65061452]
[1753342738186,0.03,183.14,183.13,21.6439526]
[1753342738698,0.03,183.14,183.13,27.10455435]
[1753342738881,0.03,183.14,183.13,61.0039526]
[1753342739087,0.75,183.14,183.13,56.14468397]
[1753342739286,0.75,183.14,183.13,61.0039526]
[1753342739490,0.03,183.14,183.13,61.0039526]
[1753342740197,0.03,183.14,183.08,0.6062093]
[1753342740399,4.85926863,183.13,183.08,4.91926863]
[1753342740586,0.75,183.14,183.08,0.06]
[1753342740587,5.57926863,183.12,183.08,0.06]
[1753342740797,0.72,183.11,183.09,39.34]
[1753342741097,0.72,183.1,183.09,39.34]
[1753342741708,7.15016863,183.1,183.08,0.06]
[1753342741885,7.15016863,183.1,183.04,16.84468397]
[1753342741886,5.46209307,183.08,183.04,0.06]
[1753342742207,26.0,183.05,183.04,0.06]
[1753342742378,30.85926863,183.05,183.04,0.06]
[1753342742585,31.57926863,183.05,183.04,0.06]
[1753342742988,0.72,183.05,183.04,39.4]
[1753342743197,0.72,183.08,183.04,44.25926863]
[1753342743404,0.72,183.08,183.05,4.85926863]
[1753342743588,0.72,183.08,183.06,44.19926863]
[1753342743802,1.5709,183.1,183.07,4.85926863]
[1753342744006,1.5709,183.1,183.08,44.19926863]
[1753342744306,0.72,183.13,183.09,4.85926863]
[1753342744512,0.72,183.13,183.1,44.19926863]
[1753342745109,1.6663,183.14,183.12,4.85926863]
[1753342745286,1.6663,183.14,183.12,44.19926863]
[1753342745487,2.3863,183.14,183.12,44.19926863]
[1753342746521,1.6663,183.14,183.12,44.19926863]
[1753342746696,0.72,183.13,183.12,39.34]
[1753342747609,5.57926863,183.13,183.12,39.34]
[1753342747792,5.57926863,183.13,183.1,39.34]
[1753342747990,36.32046681,183.11,183.1,39.34]
[1753342748211,37.04046681,183.11,183.08,39.34]
[1753342748424,4.85926863,183.09,183.08,39.34]
[1753342748605,5.57926863,183.09,183.06,39.34]
[1753342748805,0.72,183.08,183.06,39.34]
[1753342749112,0.72,183.07,183.06,39.34]
[1753342750122,5.57926863,183.07,183.06,39.34]
[1753342750426,11.04166006,183.07,183.04,0.06]
[1753342750613,4.85926863,183.05,183.04,0.06]
[1753342751120,0.72,183.05,183.04,0.06]
[1753342751326,8.60666483,183.05,183.04,0.06]
[1753342752012,14.06965308,183.05,183.04,0.06]
[1753342752209,15.64375308,183.05,183.04,0.06]
[1753342752514,41.64375308,183.05,183.04,0.06]
[1753342753416,15.64375308,183.05,183.04,0.06]
[1753342753821,15.64375308,183.05,182.98,39.34]
[1753342753822,26.0,183.03,182.98,39.34]
[1753342754008,5.46507815,182.98,182.95,39.34]
[1753342754210,0.7,182.97,182.95,39.34]
[1753342754742,8.58666483,182.97,182.95,39.34]
[1753342754944,0.7,182.97,182.95,39.34]
[1753342755435,0.7,182.96,182.95,39.34]